[Event "Titled Tuesday Blitz February 28 Late 2023"]
[White "TimGrutter03"]
[Black "Zhigalko, Sergei"]
[BlackFideId "13502956"]
[WhiteElo "2466"]
[BlackElo "2626"]
[Result "0-1"]
[Round "01"]
[TimeControl "180+2"]
[Date "2023.02.28"]
[WhiteClock "0:00:11"]
[BlackClock "0:00:49"]

1. e4 {[%clk 0:03:00]}  c5 {[%clk 0:02:59]} 2. Nf3 {[%clk 0:03:01]}  Nc6 {[%clk 0:02:58]} 3. Bb5 {[%clk 0:03:01]}  Nf6 {[%clk 0:02:58]} 4. e5 {[%clk 0:03:00]}  Nd5 {[%clk 0:02:58]} 5. O-O {[%clk 0:02:59]}  Nc7 {[%clk 0:02:58]} 6. Bxc6 {[%clk 0:02:59]}  dxc6 {[%clk 0:02:58]} 7. d3 {[%clk 0:03:00]}  h6 {[%clk 0:02:57]} 8. Nbd2 {[%clk 0:02:58]}  Bf5 {[%clk 0:02:56]} 9. Nc4 {[%clk 0:02:56]}  Ne6 {[%clk 0:02:55]} 10. a4 {[%clk 0:02:55]}  g5 {[%clk 0:02:55]} 11. a5 {[%clk 0:02:53]}  Bg7 {[%clk 0:02:55]} 12. Re1 {[%clk 0:02:49]}  Qc7 {[%clk 0:02:44]} 13. Nfd2 {[%clk 0:02:32]}  Rd8 {[%clk 0:02:37]} 14. Nb3 {[%clk 0:02:17]}  b5 {[%clk 0:02:35]} 15. axb6 {[%clk 0:02:17]}  axb6 {[%clk 0:02:36]} 16. Qf3 {[%clk 0:02:08]}  Bg6 {[%clk 0:02:33]} 17. Ra6 {[%clk 0:01:59]}  Rb8 {[%clk 0:02:32]} 18. Bd2 {[%clk 0:01:54]}  O-O {[%clk 0:02:31]} 19. Rea1 {[%clk 0:01:52]}  Rfd8 {[%clk 0:02:21]} 20. h3 {[%clk 0:01:37]}  Rd5 {[%clk 0:02:00]} 21. Nxb6 {[%clk 0:01:31]}  Rxb6 {[%clk 0:01:56]} 22. Ba5 {[%clk 0:01:31]}  Rxa6 {[%clk 0:01:54]} 23. Bxc7 {[%clk 0:01:31]}  Rxa1+ {[%clk 0:01:54]} 24. Nxa1 {[%clk 0:01:30]}  Nxc7 {[%clk 0:01:55]} 25. Nb3 {[%clk 0:01:18]}  Ne6 {[%clk 0:01:49]} 26. Na5 {[%clk 0:01:11]}  Nd4 {[%clk 0:01:46]} 27. Qd1 {[%clk 0:01:08]}  Rxe5 {[%clk 0:01:38]} 28. c3 {[%clk 0:01:07]}  Ne2+ {[%clk 0:01:35]} 29. Kf1 {[%clk 0:01:07]}  Nf4 {[%clk 0:01:36]} 30. Nxc6 {[%clk 0:00:51]}  Re6 {[%clk 0:01:25]} 31. Qa4 {[%clk 0:00:17]}  Nxd3 {[%clk 0:01:13]} 32. Kg1 {[%clk 0:00:17]}  Nxb2 {[%clk 0:01:02]} 33. Qa8+ {[%clk 0:00:15]}  Kh7 {[%clk 0:01:02]} 34. Qb7 {[%clk 0:00:15]}  Nd3 {[%clk 0:00:53]} 35. Nxe7 {[%clk 0:00:11]}  Re1+ {[%clk 0:00:48]} 36. Kh2 {[%clk 0:00:11]}  Be5+ {[%clk 0:00:49]} 37. g3 {[%clk 0:00:11]}  Be4 {[%clk 0:00:49]} 0-1


[Site "https://www.chess.com"]

[Event "Titled Tuesday Blitz February 28 Late 2023"]
[White "Sokolin, Leonid"]
[Black "Madaminov, Mukhiddin"]
[WhiteFideId "2009161"]
[BlackFideId "14210703"]
[WhiteElo "2394"]
[BlackElo "2511"]
[Result "0-1"]
[Round "01"]
[TimeControl "180+2"]
[Date "2023.02.28"]
[WhiteClock "0:00:03"]
[BlackClock "0:00:02"]

1. e4 {[%clk 0:02:58]}  e5 {[%clk 0:02:58]} 2. Nf3 {[%clk 0:02:58]}  Nc6 {[%clk 0:02:58]} 3. Nc3 {[%clk 0:02:58]}  Nf6 {[%clk 0:02:57]} 4. Bb5 {[%clk 0:02:57]}  Bb4 {[%clk 0:02:56]} 5. O-O {[%clk 0:02:56]}  O-O {[%clk 0:02:56]} 6. Bxc6 {[%clk 0:02:51]}  dxc6 {[%clk 0:02:54]} 7. d3 {[%clk 0:02:41]}  Nd7 {[%clk 0:02:45]} 8. Ne2 {[%clk 0:02:30]}  Re8 {[%clk 0:02:43]} 9. Ng3 {[%clk 0:02:25]}  Bf8 {[%clk 0:02:40]} 10. Be3 {[%clk 0:02:21]}  c5 {[%clk 0:02:40]} 11. Nd2 {[%clk 0:02:18]}  Nb8 {[%clk 0:02:33]} 12. f4 {[%clk 0:02:16]}  exf4 {[%clk 0:02:28]} 13. Rxf4 {[%clk 0:02:16]}  Nc6 {[%clk 0:02:28]} 14. Rf2 {[%clk 0:02:15]}  Ne5 {[%clk 0:02:26]} 15. h3 {[%clk 0:02:15]}  g6 {[%clk 0:02:18]} 16. Nf3 {[%clk 0:02:14]}  Bd6 {[%clk 0:02:08]} 17. Nxe5 {[%clk 0:02:00]}  Bxe5 {[%clk 0:02:08]} 18. Qf3 {[%clk 0:02:00]}  Be6 {[%clk 0:01:58]} 19. Bxc5 {[%clk 0:01:58]}  b6 {[%clk 0:01:44]} 20. Ba3 {[%clk 0:01:38]}  c5 {[%clk 0:01:45]} 21. Ne2 {[%clk 0:01:35]}  Rc8 {[%clk 0:01:40]} 22. Rd1 {[%clk 0:01:28]}  b5 {[%clk 0:01:37]} 23. b3 {[%clk 0:01:27]}  Qa5 {[%clk 0:01:35]} 24. Bc1 {[%clk 0:01:19]}  Qxa2 {[%clk 0:01:34]} 25. Bf4 {[%clk 0:01:19]}  Bg7 {[%clk 0:01:17]} 26. Be3 {[%clk 0:01:15]}  Qxc2 {[%clk 0:01:12]} 27. Nd4 {[%clk 0:01:15]}  cxd4 {[%clk 0:00:33]} 28. Rxc2 {[%clk 0:01:12]}  Rxc2 {[%clk 0:00:34]} 29. Bg5 {[%clk 0:01:02]}  Bxb3 {[%clk 0:00:30]} 30. Rb1 {[%clk 0:01:02]}  Ba4 {[%clk 0:00:25]} 31. Bf6 {[%clk 0:01:01]}  Rc6 {[%clk 0:00:17]} 32. e5 {[%clk 0:01:00]}  Rb6 {[%clk 0:00:15]} 33. Qf4 {[%clk 0:00:58]}  Bc2 {[%clk 0:00:06]} 34. Rb4 {[%clk 0:00:56]}  Bxd3 {[%clk 0:00:06]} 35. Rxd4 {[%clk 0:00:56]}  Bc4 {[%clk 0:00:06]} 36. Rd6 {[%clk 0:00:51]}  Bf8 {[%clk 0:00:04]} 37. Rxb6 {[%clk 0:00:49]}  axb6 {[%clk 0:00:05]} 38. Kh2 {[%clk 0:00:46]}  Be6 {[%clk 0:00:05]} 39. Qd4 {[%clk 0:00:42]}  Bc5 {[%clk 0:00:03]} 40. Qd2 {[%clk 0:00:42]}  b4 {[%clk 0:00:03]} 41. Qd3 {[%clk 0:00:32]}  b3 {[%clk 0:00:03]} 42. Qb5 {[%clk 0:00:32]}  Ra8 {[%clk 0:00:03]} 43. Qc6 {[%clk 0:00:30]}  Rc8 {[%clk 0:00:03]} 44. Qb5 {[%clk 0:00:30]}  Bc4 {[%clk 0:00:03]} 45. Qd7 {[%clk 0:00:27]}  Ra8 {[%clk 0:00:03]} 46. Qb7 {[%clk 0:00:25]}  Rf8 {[%clk 0:00:03]} 47. Qe4 {[%clk 0:00:21]}  Be6 {[%clk 0:00:03]} 48. Qf4 {[%clk 0:00:16]}  Rc8 {[%clk 0:00:03]} 49. Qd2 {[%clk 0:00:11]}  Bf8 {[%clk 0:00:03]} 50. Qd4 {[%clk 0:00:11]}  b5 {[%clk 0:00:03]} 51. h4 {[%clk 0:00:08]}  h5 {[%clk 0:00:03]} 52. Qd2 {[%clk 0:00:05]}  Kh7 {[%clk 0:00:02]} 53. Qd4 {[%clk 0:00:03]}  Ba3 {[%clk 0:00:02]} 0-1


[Site "https://www.chess.com"]

[Event "Titled Tuesday Blitz February 28 Late 2023"]
[White "Li, Ruifeng"]
[Black "Aydin, Gulenay"]
[WhiteFideId "2061074"]
[BlackFideId "34557431"]
[WhiteElo "2441"]
[BlackElo "2009"]
[Result "1/2-1/2"]
[Round "01"]
[TimeControl "180+2"]
[Date "2023.02.28"]
[WhiteClock "0:00:10"]
[BlackClock "0:00:04"]

1. b3 {[%clk 0:03:00]}  Nf6 {[%clk 0:03:00]} 2. Bb2 {[%clk 0:03:01]}  g6 {[%clk 0:03:00]} 3. g4 {[%clk 0:03:01]}  h6 {[%clk 0:02:57]} 4. e3 {[%clk 0:02:55]}  Bg7 {[%clk 0:02:57]} 5. d4 {[%clk 0:02:56]}  d6 {[%clk 0:02:57]} 6. f3 {[%clk 0:02:46]}  h5 {[%clk 0:02:55]} 7. g5 {[%clk 0:02:44]}  Nfd7 {[%clk 0:02:55]} 8. f4 {[%clk 0:02:41]}  c5 {[%clk 0:02:51]} 9. Nf3 {[%clk 0:02:39]}  O-O {[%clk 0:02:48]} 10. Nc3 {[%clk 0:02:36]}  cxd4 {[%clk 0:02:25]} 11. exd4 {[%clk 0:02:23]}  Nb6 {[%clk 0:02:14]} 12. Qd2 {[%clk 0:02:13]}  Bg4 {[%clk 0:02:07]} 13. Bg2 {[%clk 0:02:12]}  Nc6 {[%clk 0:02:07]} 14. h3 {[%clk 0:02:09]}  Bxf3 {[%clk 0:01:36]} 15. Bxf3 {[%clk 0:02:10]}  Nxd4 {[%clk 0:01:30]} 16. Bxb7 {[%clk 0:02:09]}  Rb8 {[%clk 0:01:23]} 17. Be4 {[%clk 0:02:09]}  d5 {[%clk 0:01:11]} 18. Nxd5 {[%clk 0:01:23]}  Nxc2+ {[%clk 0:00:26]} 19. Qxc2 {[%clk 0:01:19]}  Nxd5 {[%clk 0:00:22]} 20. Bxg7 {[%clk 0:01:14]}  Kxg7 {[%clk 0:00:22]} 21. Qb2+ {[%clk 0:01:08]}  Kg8 {[%clk 0:00:21]} 22. O-O-O {[%clk 0:01:05]}  Qc7+ {[%clk 0:00:18]} 23. Bc2 {[%clk 0:01:01]}  Ne3 {[%clk 0:00:10]} 24. Rd3 {[%clk 0:00:58]}  Qxf4 {[%clk 0:00:09]} 25. Kb1 {[%clk 0:00:55]}  Rbc8 {[%clk 0:00:09]} 26. Rc3 {[%clk 0:00:53]}  Nxc2 {[%clk 0:00:09]} 27. Rxc2 {[%clk 0:00:48]}  Qe4 {[%clk 0:00:08]} 28. Rd1 {[%clk 0:00:37]}  Qf5 {[%clk 0:00:06]} 29. h4 {[%clk 0:00:35]}  e6 {[%clk 0:00:06]} 30. Qc1 {[%clk 0:00:23]}  Rfd8 {[%clk 0:00:06]} 31. Rxd8+ {[%clk 0:00:21]}  Rxd8 {[%clk 0:00:07]} 32. Kb2 {[%clk 0:00:22]}  Qe5+ {[%clk 0:00:07]} 33. Kb1 {[%clk 0:00:21]}  Qf5 {[%clk 0:00:07]} 34. Kb2 {[%clk 0:00:22]}  Qe5+ {[%clk 0:00:07]} 35. Kb1 {[%clk 0:00:21]}  Qe4 {[%clk 0:00:08]} 36. Kb2 {[%clk 0:00:21]}  Qd4+ {[%clk 0:00:08]} 37. Kb1 {[%clk 0:00:21]}  Qd3 {[%clk 0:00:08]} 38. Kb2 {[%clk 0:00:21]}  Qd4+ {[%clk 0:00:09]} 39. Kb1 {[%clk 0:00:21]}  Qe4 {[%clk 0:00:09]} 40. Kb2 {[%clk 0:00:21]}  Qb7 {[%clk 0:00:08]} 41. Qf1 {[%clk 0:00:19]}  Qd7 {[%clk 0:00:07]} 42. Qf6 {[%clk 0:00:14]}  Qd4+ {[%clk 0:00:07]} 43. Ka3 {[%clk 0:00:11]}  Qd6+ {[%clk 0:00:05]} 44. Kb2 {[%clk 0:00:10]}  Qd4+ {[%clk 0:00:05]} 45. Ka3 {[%clk 0:00:11]}  Qd6+ {[%clk 0:00:05]} 46. Kb2 {[%clk 0:00:10]}  Qd4+ {[%clk 0:00:04]} 1/2-1/2


[Site "https://www.chess.com"]

[Event "Titled Tuesday Blitz February 28 Late 2023"]
[White "Plotkin, Victor"]
[Black "Perez Ponsa, Federico"]
[WhiteFideId "2606674"]
[BlackFideId "117927"]
[WhiteElo "2214"]
[BlackElo "2592"]
[Result "0-1"]
[Round "01"]
[TimeControl "180+2"]
[Date "2023.02.28"]
[WhiteClock "0:00:09"]
[BlackClock "0:00:12"]

1. e4 {[%clk 0:02:56]}  c5 {[%clk 0:03:00]} 2. c3 {[%clk 0:02:55]}  Nf6 {[%clk 0:03:00]} 3. e5 {[%clk 0:02:53]}  Nd5 {[%clk 0:03:00]} 4. d4 {[%clk 0:02:51]}  cxd4 {[%clk 0:03:01]} 5. Nf3 {[%clk 0:02:51]}  Nc6 {[%clk 0:03:01]} 6. Bc4 {[%clk 0:02:52]}  Nb6 {[%clk 0:02:59]} 7. Bb3 {[%clk 0:02:52]}  d6 {[%clk 0:02:53]} 8. exd6 {[%clk 0:02:52]}  Qxd6 {[%clk 0:02:53]} 9. O-O {[%clk 0:02:52]}  Be6 {[%clk 0:02:52]} 10. cxd4 {[%clk 0:02:47]}  Bxb3 {[%clk 0:02:49]} 11. Qxb3 {[%clk 0:02:47]}  e6 {[%clk 0:02:48]} 12. Nc3 {[%clk 0:02:47]}  Be7 {[%clk 0:02:47]} 13. Rd1 {[%clk 0:02:47]}  Qb4 {[%clk 0:02:31]} 14. d5 {[%clk 0:02:41]}  Qxb3 {[%clk 0:02:27]} 15. axb3 {[%clk 0:02:40]}  exd5 {[%clk 0:02:28]} 16. Nxd5 {[%clk 0:02:39]}  Nxd5 {[%clk 0:02:26]} 17. Rxd5 {[%clk 0:02:38]}  O-O {[%clk 0:02:19]} 18. Be3 {[%clk 0:02:38]}  Rfd8 {[%clk 0:02:15]} 19. Rad1 {[%clk 0:02:26]}  Kf8 {[%clk 0:02:07]} 20. Kf1 {[%clk 0:02:25]}  Bf6 {[%clk 0:02:06]} 21. Rxd8+ {[%clk 0:02:22]}  Rxd8 {[%clk 0:02:05]} 22. Rxd8+ {[%clk 0:02:23]}  Bxd8 {[%clk 0:02:05]} 23. Nd4 {[%clk 0:02:16]}  Nxd4 {[%clk 0:01:55]} 24. Bxd4 {[%clk 0:02:16]}  a6 {[%clk 0:01:56]} 25. Ke2 {[%clk 0:02:14]}  f6 {[%clk 0:01:54]} 26. Kd3 {[%clk 0:02:14]}  Ke7 {[%clk 0:01:54]} 27. Ke4 {[%clk 0:02:09]}  Ke6 {[%clk 0:01:54]} 28. g4 {[%clk 0:02:09]}  g6 {[%clk 0:01:54]} 29. f3 {[%clk 0:02:08]}  Bc7 {[%clk 0:01:54]} 30. h3 {[%clk 0:02:07]}  f5+ {[%clk 0:01:54]} 31. gxf5+ {[%clk 0:02:07]}  gxf5+ {[%clk 0:01:55]} 32. Kd3 {[%clk 0:02:07]}  Kd5 {[%clk 0:01:56]} 33. Bc3 {[%clk 0:02:03]}  Bd6 {[%clk 0:01:49]} 34. Bd4 {[%clk 0:01:57]}  Be7 {[%clk 0:01:44]} 35. Bc3 {[%clk 0:01:56]}  b5 {[%clk 0:01:44]} 36. Bd4 {[%clk 0:01:51]}  Bd6 {[%clk 0:01:36]} 37. Bc3 {[%clk 0:01:51]}  Bc5 {[%clk 0:01:37]} 38. b4 {[%clk 0:01:34]}  Bd6 {[%clk 0:01:32]} 39. b3 {[%clk 0:01:34]}  Bf4 {[%clk 0:01:31]} 40. Be1 {[%clk 0:01:32]}  Bc1 {[%clk 0:01:29]} 41. Bc3 {[%clk 0:01:30]}  Bf4 {[%clk 0:01:24]} 42. Be1 {[%clk 0:01:27]}  Bc7 {[%clk 0:01:21]} 43. Bc3 {[%clk 0:01:25]}  Bd6 {[%clk 0:01:21]} 44. Ke3 {[%clk 0:01:21]}  h5 {[%clk 0:01:17]} 45. Kd3 {[%clk 0:01:21]}  Be7 {[%clk 0:01:11]} 46. Ke3 {[%clk 0:01:13]}  Bg5+ {[%clk 0:01:12]} 47. Kd3 {[%clk 0:01:13]}  Bf4 {[%clk 0:01:12]} 48. Be1 {[%clk 0:01:12]}  Be5 {[%clk 0:01:09]} 49. Bd2 {[%clk 0:01:12]}  Ke6 {[%clk 0:01:10]} 50. Be1 {[%clk 0:01:08]}  Bf6 {[%clk 0:01:03]} 51. Bg3 {[%clk 0:01:01]}  Bg7 {[%clk 0:00:57]} 52. Bf2 {[%clk 0:00:58]}  Bf8 {[%clk 0:00:56]} 53. Be1 {[%clk 0:00:55]}  Ke5 {[%clk 0:00:51]} 54. Bg3+ {[%clk 0:00:55]}  Kf6 {[%clk 0:00:46]} 55. Bh4+ {[%clk 0:00:53]}  Kg6 {[%clk 0:00:47]} 56. Kc3 {[%clk 0:00:39]}  Bd6 {[%clk 0:00:42]} 57. Bd8 {[%clk 0:00:36]}  Kf7 {[%clk 0:00:36]} 58. Bh4 {[%clk 0:00:34]}  Ke6 {[%clk 0:00:35]} 59. Be1 {[%clk 0:00:33]}  Kf6 {[%clk 0:00:31]} 60. Bh4+ {[%clk 0:00:32]}  Kg6 {[%clk 0:00:31]} 61. Bd8 {[%clk 0:00:30]}  Bg3 {[%clk 0:00:31]} 62. Be7 {[%clk 0:00:24]}  Kf7 {[%clk 0:00:31]} 63. Bc5 {[%clk 0:00:22]}  Ke6 {[%clk 0:00:31]} 64. Kd3 {[%clk 0:00:21]}  Kd5 {[%clk 0:00:28]} 65. Bf8 {[%clk 0:00:19]}  Bf2 {[%clk 0:00:21]} 66. Be7 {[%clk 0:00:18]}  Ke5 {[%clk 0:00:19]} 67. Ke2 {[%clk 0:00:16]}  Bb6 {[%clk 0:00:18]} 68. Bg5 {[%clk 0:00:13]}  Kd5 {[%clk 0:00:13]} 69. Kd3 {[%clk 0:00:11]}  Bf2 {[%clk 0:00:14]} 70. Bd2 {[%clk 0:00:10]}  Bg3 {[%clk 0:00:14]} 71. Bc3 {[%clk 0:00:09]}  Bf4 {[%clk 0:00:14]} 72. Bd2 {[%clk 0:00:09]}  Bxd2 {[%clk 0:00:11]} 73. Kxd2 {[%clk 0:00:10]}  Kd4 {[%clk 0:00:12]} 74. h4 {[%clk 0:00:09]}  f4 {[%clk 0:00:12]} 0-1


[Site "https://www.chess.com"]

[Event "Titled Tuesday Blitz February 28 Late 2023"]
[White "Rostovtsev, Dmitry"]
[Black "Girsh, Daniel"]
[WhiteFideId "34278320"]
[BlackFideId "30949190"]
[WhiteElo "2330"]
[BlackElo "2075"]
[Result "1-0"]
[Round "01"]
[TimeControl "180+2"]
[Date "2023.02.28"]
[WhiteClock "0:00:03"]
[BlackClock "0:00:15"]

1. e4 {[%clk 0:02:59]}  c5 {[%clk 0:03:00]} 2. Nf3 {[%clk 0:02:58]}  d6 {[%clk 0:03:00]} 3. d4 {[%clk 0:02:58]}  cxd4 {[%clk 0:03:01]} 4. Qxd4 {[%clk 0:02:58]}  Nf6 {[%clk 0:03:00]} 5. Nc3 {[%clk 0:02:58]}  a6 {[%clk 0:02:59]} 6. Bg5 {[%clk 0:02:54]}  Nc6 {[%clk 0:02:59]} 7. Qd3 {[%clk 0:02:53]}  e6 {[%clk 0:02:59]} 8. O-O-O {[%clk 0:02:52]}  Bd7 {[%clk 0:02:58]} 9. Bf4 {[%clk 0:02:50]}  e5 {[%clk 0:02:50]} 10. Bg5 {[%clk 0:02:50]}  h6 {[%clk 0:02:49]} 11. Bxf6 {[%clk 0:02:50]}  Qxf6 {[%clk 0:02:50]} 12. Nd5 {[%clk 0:02:50]}  Qd8 {[%clk 0:02:50]} 13. Kb1 {[%clk 0:02:49]}  Be6 {[%clk 0:02:48]} 14. Nd2 {[%clk 0:02:47]}  Be7 {[%clk 0:02:48]} 15. Be2 {[%clk 0:02:42]}  O-O {[%clk 0:02:47]} 16. c3 {[%clk 0:02:42]}  b5 {[%clk 0:02:46]} 17. Nb3 {[%clk 0:02:33]}  Kh8 {[%clk 0:02:31]} 18. Nxe7 {[%clk 0:02:29]}  Qxe7 {[%clk 0:02:32]} 19. Qxd6 {[%clk 0:02:29]}  Bxb3 {[%clk 0:02:19]} 20. axb3 {[%clk 0:02:22]}  Qb7 {[%clk 0:02:19]} 21. Qd7 {[%clk 0:02:09]}  Qb6 {[%clk 0:02:18]} 22. Rd6 {[%clk 0:02:08]}  Qxf2 {[%clk 0:02:15]} 23. Bf3 {[%clk 0:01:55]}  Na5 {[%clk 0:02:13]} 24. Rd2 {[%clk 0:01:14]}  Qh4 {[%clk 0:02:08]} 25. Rhd1 {[%clk 0:00:42]}  Nxb3 {[%clk 0:02:06]} 26. Rd5 {[%clk 0:00:43]}  Qxh2 {[%clk 0:02:00]} 27. Qf5 {[%clk 0:00:33]}  Qf4 {[%clk 0:01:58]} 28. Rxe5 {[%clk 0:00:31]}  Qxf5 {[%clk 0:01:58]} 29. exf5 {[%clk 0:00:31]}  Rae8 {[%clk 0:01:57]} 30. Rxe8 {[%clk 0:00:26]}  Rxe8 {[%clk 0:01:58]} 31. Rd7 {[%clk 0:00:26]}  f6 {[%clk 0:01:55]} 32. Bh5 {[%clk 0:00:25]}  Rc8 {[%clk 0:01:47]} 33. Ra7 {[%clk 0:00:20]}  Nc5 {[%clk 0:01:45]} 34. Bg6 {[%clk 0:00:18]}  Kg8 {[%clk 0:01:45]} 35. Kc2 {[%clk 0:00:15]}  Kf8 {[%clk 0:01:44]} 36. Rf7+ {[%clk 0:00:14]}  Kg8 {[%clk 0:01:45]} 37. Ra7 {[%clk 0:00:14]}  Kf8 {[%clk 0:01:45]} 38. g4 {[%clk 0:00:14]}  Kg8 {[%clk 0:01:44]} 39. Kd2 {[%clk 0:00:14]}  Rd8+ {[%clk 0:01:43]} 40. Ke3 {[%clk 0:00:14]}  Rd3+ {[%clk 0:01:39]} 41. Ke2 {[%clk 0:00:14]}  Rd8 {[%clk 0:01:40]} 42. Kf3 {[%clk 0:00:12]}  Rc8 {[%clk 0:01:32]} 43. Ke3 {[%clk 0:00:10]}  Rd8 {[%clk 0:01:31]} 44. Kf4 {[%clk 0:00:10]}  Nd3+ {[%clk 0:01:30]} 45. Kg3 {[%clk 0:00:09]}  Nxb2 {[%clk 0:01:24]} 46. Rxa6 {[%clk 0:00:10]}  Nd1 {[%clk 0:01:24]} 47. Rc6 {[%clk 0:00:09]}  Rd3+ {[%clk 0:01:22]} 48. Kf4 {[%clk 0:00:09]}  Rd8 {[%clk 0:01:02]} 49. Rc5 {[%clk 0:00:09]}  Rb8 {[%clk 0:00:56]} 50. Kf3 {[%clk 0:00:07]}  Nb2 {[%clk 0:00:53]} 51. Ke4 {[%clk 0:00:06]}  Na4 {[%clk 0:00:53]} 52. Rc7 {[%clk 0:00:05]}  Rd8 {[%clk 0:00:47]} 53. Bf7+ {[%clk 0:00:03]}  Kf8 {[%clk 0:00:46]} 54. Be6 {[%clk 0:00:04]}  Rd1 {[%clk 0:00:35]} 55. Rf7+ {[%clk 0:00:03]}  Ke8 {[%clk 0:00:36]} 56. Rxg7 {[%clk 0:00:04]}  Nxc3+ {[%clk 0:00:36]} 57. Ke3 {[%clk 0:00:04]}  b4 {[%clk 0:00:35]} 58. Rb7 {[%clk 0:00:03]}  Nd5+ {[%clk 0:00:30]} 59. Kf3 {[%clk 0:00:03]}  Rd4 {[%clk 0:00:29]} 60. Bxd5 {[%clk 0:00:01]}  Rxd5 {[%clk 0:00:29]} 61. Rxb4 {[%clk 0:00:02]}  Kf7 {[%clk 0:00:29]} 62. Kg3 {[%clk 0:00:02]}  Re5 {[%clk 0:00:28]} 63. Rb7+ {[%clk 0:00:02]}  Kg8 {[%clk 0:00:28]} 64. Kh4 {[%clk 0:00:02]}  Re4 {[%clk 0:00:24]} 65. Kh5 {[%clk 0:00:02]}  Kf8 {[%clk 0:00:25]} 66. Rh7 {[%clk 0:00:02]}  Ke8 {[%clk 0:00:22]} 67. Rxh6 {[%clk 0:00:01]}  Kf7 {[%clk 0:00:23]} 68. Rh7+ {[%clk 0:00:02]}  Kg8 {[%clk 0:00:23]} 69. Ra7 {[%clk 0:00:03]}  Kf8 {[%clk 0:00:23]} 70. Rb7 {[%clk 0:00:03]}  Kg8 {[%clk 0:00:23]} 71. Rc7 {[%clk 0:00:03]}  Kf8 {[%clk 0:00:23]} 72. Rd7 {[%clk 0:00:04]}  Ra4 {[%clk 0:00:21]} 73. Rd6 {[%clk 0:00:03]}  Ke7 {[%clk 0:00:21]} 74. Rb6 {[%clk 0:00:03]}  Rc4 {[%clk 0:00:19]} 75. Re6+ {[%clk 0:00:03]}  Kf7 {[%clk 0:00:18]} 76. Re1 {[%clk 0:00:04]}  Rc2 {[%clk 0:00:18]} 77. Kh4 {[%clk 0:00:03]}  Rh2+ {[%clk 0:00:18]} 78. Kg3 {[%clk 0:00:04]}  Rc2 {[%clk 0:00:19]} 79. Re3 {[%clk 0:00:04]}  Rb2 {[%clk 0:00:19]} 80. Ra3 {[%clk 0:00:04]}  Rc2 {[%clk 0:00:19]} 81. Ra7+ {[%clk 0:00:05]}  Kf8 {[%clk 0:00:20]} 82. Kh4 {[%clk 0:00:04]}  Rh2+ {[%clk 0:00:20]} 83. Kg3 {[%clk 0:00:05]}  Rc2 {[%clk 0:00:21]} 84. Kf4 {[%clk 0:00:05]}  Rc4+ {[%clk 0:00:21]} 85. Kf3 {[%clk 0:00:05]}  Rc3+ {[%clk 0:00:22]} 86. Kg2 {[%clk 0:00:05]}  Rd3 {[%clk 0:00:22]} 87. Rc7 {[%clk 0:00:04]}  Kg8 {[%clk 0:00:21]} 88. Re7 {[%clk 0:00:04]}  Kf8 {[%clk 0:00:22]} 89. Re6 {[%clk 0:00:03]}  Kf7 {[%clk 0:00:22]} 90. Kf2 {[%clk 0:00:04]}  Ra3 {[%clk 0:00:22]} 91. Re3 {[%clk 0:00:04]}  Ra2+ {[%clk 0:00:15]} 92. Kf3 {[%clk 0:00:04]}  Ra4 {[%clk 0:00:16]} 93. Rb3 {[%clk 0:00:03]}  Rc4 {[%clk 0:00:16]} 94. Rb7+ {[%clk 0:00:03]}  Kf8 {[%clk 0:00:16]} 95. Kg3 {[%clk 0:00:03]}  Rc1 {[%clk 0:00:15]} 96. Rb2 {[%clk 0:00:03]}  Rc3+ {[%clk 0:00:15]} 97. Kh4 {[%clk 0:00:03]}  Rc1 {[%clk 0:00:15]} 98. Kh5 {[%clk 0:00:04]}  Rc4 {[%clk 0:00:15]} 99. Rb7 {[%clk 0:00:02]}  Rd4 {[%clk 0:00:14]} 100. Kg6 {[%clk 0:00:02]}  Rxg4+ {[%clk 0:00:14]} 101. Kxf6 {[%clk 0:00:03]}  Kg8 {[%clk 0:00:15]} 102. Rb8+ {[%clk 0:00:03]}  Kh7 {[%clk 0:00:14]} 103. Ke6 {[%clk 0:00:03]}  Re4+ {[%clk 0:00:14]} 104. Kf7 {[%clk 0:00:03]}  Rf4 {[%clk 0:00:15]} 105. f6 {[%clk 0:00:03]}  Rf5 {[%clk 0:00:15]} 106. Rb3 {[%clk 0:00:03]}  Rf1 {[%clk 0:00:15]} 107. Rh3# {[%clk 0:00:03]} 1-0


[Site "https://www.chess.com"]

[Event "Titled Tuesday Blitz February 28 Late 2023"]
[White "Grot, Blazej"]
[Black "Vasquez Schroeder, Rodrigo"]
[WhiteFideId "21835845"]
[BlackFideId "3400042"]
[WhiteElo "1823"]
[BlackElo "2600"]
[Result "0-1"]
[Round "01"]
[TimeControl "180+2"]
[Date "2023.02.28"]
[WhiteClock "0:00:02"]
[BlackClock "0:02:00"]

1. e4 {[%clk 0:02:57]}  c6 {[%clk 0:02:58]} 2. Nf3 {[%clk 0:02:52]}  d5 {[%clk 0:02:58]} 3. d3 {[%clk 0:02:52]}  Qc7 {[%clk 0:02:56]} 4. Nbd2 {[%clk 0:02:51]}  Bg4 {[%clk 0:02:53]} 5. g3 {[%clk 0:02:50]}  e6 {[%clk 0:02:51]} 6. Bg2 {[%clk 0:02:51]}  Nf6 {[%clk 0:02:50]} 7. O-O {[%clk 0:02:51]}  Nbd7 {[%clk 0:02:48]} 8. c3 {[%clk 0:02:51]}  dxe4 {[%clk 0:02:46]} 9. dxe4 {[%clk 0:02:51]}  e5 {[%clk 0:02:46]} 10. h3 {[%clk 0:02:44]}  Bh5 {[%clk 0:02:45]} 11. Qb3 {[%clk 0:02:38]}  Be7 {[%clk 0:02:43]} 12. Re1 {[%clk 0:02:32]}  O-O {[%clk 0:02:41]} 13. a4 {[%clk 0:02:30]}  a5 {[%clk 0:02:40]} 14. Nc4 {[%clk 0:02:30]}  Bxf3 {[%clk 0:02:34]} 15. Bxf3 {[%clk 0:02:29]}  Bc5 {[%clk 0:02:35]} 16. Be3 {[%clk 0:02:27]}  Bxe3 {[%clk 0:02:34]} 17. Nxe3 {[%clk 0:02:28]}  Nc5 {[%clk 0:02:34]} 18. Qc4 {[%clk 0:02:17]}  Qb6 {[%clk 0:02:33]} 19. Nf5 {[%clk 0:01:44]}  g6 {[%clk 0:02:30]} 20. Ne3 {[%clk 0:01:20]}  Rad8 {[%clk 0:02:28]} 21. Rad1 {[%clk 0:01:17]}  h5 {[%clk 0:02:24]} 22. g4 {[%clk 0:01:04]}  hxg4 {[%clk 0:02:23]} 23. hxg4 {[%clk 0:01:05]}  Ne6 {[%clk 0:02:21]} 24. b4 {[%clk 0:00:52]}  axb4 {[%clk 0:02:19]} 25. cxb4 {[%clk 0:00:53]}  Nd4 {[%clk 0:02:18]} 26. Bg2 {[%clk 0:00:46]}  Nh7 {[%clk 0:02:17]} 27. a5 {[%clk 0:00:38]}  Qa7 {[%clk 0:02:14]} 28. g5 {[%clk 0:00:28]}  Nxg5 {[%clk 0:02:13]} 29. Ng4 {[%clk 0:00:28]}  Qb8 {[%clk 0:02:10]} 30. Rd3 {[%clk 0:00:17]}  Qd6 {[%clk 0:02:07]} 31. Red1 {[%clk 0:00:14]}  Nge6 {[%clk 0:02:06]} 32. Nf6+ {[%clk 0:00:04]}  Kg7 {[%clk 0:02:05]} 33. Ng4 {[%clk 0:00:05]}  Nf4 {[%clk 0:02:04]} 34. R3d2 {[%clk 0:00:03]}  f6 {[%clk 0:02:04]} 35. Ne3 {[%clk 0:00:03]}  Qe7 {[%clk 0:02:01]} 36. Qc1 {[%clk 0:00:01]}  Nde2+ {[%clk 0:02:00]} 37. Rxe2 {[%clk 0:00:02]}  Nxe2+ {[%clk 0:02:00]} 0-1


[Site "https://www.chess.com"]